bitfinex-derivatives/quotes_ETHF0:USTF0_20250912
["timestamp","ask_amount","ask_price","bid_price","bid_amount"]
[1757701948582,0.8093,4621.5,4621.4,0.6115]
[1757701949406,0.8093,4621.5,4621.4,0.8679]
[1757701949594,0.8093,4621.5,4621.4,0.6115]
[1757701949792,0.3079,4621.9,4621.4,1.25716]
[1757701949993,0.5126,4621.9,4621.8,0.4038]
[1757701950699,0.7102,4621.9,4621.8,0.4038]
[1757701951005,0.7102,4621.9,4621.8,0.1972]
[1757701951598,0.7102,4621.9,4620.9,0.97326]
[1757701951599,0.5126,4621.4,4621.3,0.1972]
[1757701951896,0.7102,4621.4,4621.3,0.4162]
[1757701952891,0.7102,4621.4,4621.3,0.4038]
[1757701953096,0.7102,4621.4,4621.3,0.6602]
[1757701953298,0.7102,4621.4,4621.3,0.8792]
[1757701953890,0.1195,4622.0,4621.4,0.38926]
[1757701954096,0.7102,4621.9,4621.8,0.1972]
[1757701958201,0.7102,4621.9,4621.8,0.4162]
[1757701960303,0.7102,4621.9,4621.8,0.6228]
[1757701960705,0.5126,4621.9,4621.8,0.8792]
[1757701960906,0.7102,4621.9,4621.8,0.6228]
[1757701961405,0.1195,4623.0,4622.0,0.1167]
[1757701961599,0.4023,4622.2,4622.1,0.5079]
[1757701962904,0.4023,4622.2,4622.1,0.7145]
[1757701963105,0.4023,4622.2,4622.1,0.9335]
[1757701964207,0.6955,4622.2,4622.1,0.9335]
[1757701964419,0.6955,4622.2,4622.1,0.7145]
[1757701964608,0.6955,4622.2,4622.1,0.9335]
[1757701964809,0.4023,4622.2,4622.1,0.9335]
[1757701965004,0.2047,4622.2,4622.1,0.9335]
[1757701965204,0.2932,4622.8,4622.2,0.3107]
[1757701965400,0.2932,4622.8,4622.2,0.7145]
[1757701965606,0.2932,4623.4,4622.5,0.1167]
[1757701965801,0.1922,4622.7,4622.6,0.9253]
[1757701966002,0.1922,4623.1,4623.0,0.6183]
[1757701966202,0.2933,4624.4,4623.5,0.1202]
[1757701966402,0.4941,4623.7,4623.6,31.546]
[1757701966608,0.6863,4624.1,4624.0,0.6157]
[1757701966911,1.00483979,4624.1,4624.0,0.8148]
[1757701967308,0.61183979,4624.1,4624.0,1.0338]
[1757701967510,0.1922,4624.1,4624.0,0.8148]
[1757701967703,0.1922,4624.1,4624.0,1.0338]
[1757701967901,0.2933,4624.7,4624.6,0.1965]
[1757701968107,0.001,4625.0,4624.7,0.4955]
[1757701968307,0.6863,4624.8,4624.7,0.4955]
[1757701968505,1.29190117,4624.8,4624.7,0.7145]
[1757701968712,1.29190117,4624.8,4624.7,0.299]
[1757701968910,0.6863,4624.8,4624.7,0.219]
[1757701969108,0.393,4624.8,4624.7,0.219]
[1757701969307,0.393,4624.8,4624.7,0.7145]
[1757701969708,0.6863,4624.8,4624.7,0.4955]
[1757701969906,0.6863,4624.8,4624.7,0.219]
[1757701970201,0.393,4624.8,4624.5,0.1202]
[1757701970406,0.6863,4624.6,4624.5,0.4955]
[1757701970708,0.2943,4625.0,4624.6,0.299]
[1757701970912,0.1932,4625.0,4624.9,0.1965]
[1757701971107,0.394,4625.0,4624.9,0.6946]
[1757701971305,0.394,4625.0,4624.9,0.9136]
[1757701971706,0.394,4625.0,4624.9,0.6946]
[1757701972206,0.6873,4625.0,4624.9,0.7145]
[1757701972405,0.6873,4625.0,4624.9,0.299]
[1757701972708,0.6863,4624.2,4624.1,0.4955]
[1757701972914,0.1922,4624.2,4624.1,31.667]
[1757701973615,0.001,4625.0,4624.9,0.1965]
[1757701973912,0.001,4625.0,4624.9,0.9136]
[1757701975016,0.1617,4625.1,4625.0,0.5226]
[1757701975208,0.1617,4625.1,4625.0,1.0338]
[1757701977112,0.0618,4627.0,4625.0,1.0338]
[1757701977113,0.0999,4625.9,4625.1,0.2988]
[1757701977317,0.1599,4625.2,4625.1,0.6951]
[1757701977915,0.0999,4625.9,4625.1,0.3963]
[1757701978213,0.0999,4625.9,4625.0,0.3392]
[1757701978214,0.1599,4625.6,4625.5,0.8109]
[1757701978512,0.3198,4625.6,4625.5,0.219]
[1757701978818,0.4197,4625.6,4625.5,0.219]
[1757701979020,0.4197,4625.6,4625.5,0.5178]
[1757701979314,0.3198,4625.1,4625.0,0.3206]
[1757701979618,0.3198,4625.1,4625.0,0.8384]
[1757701980014,0.3198,4625.1,4625.0,1.0343]
[1757701980416,0.3198,4625.1,4625.0,0.8384]
[1757701981215,0.1599,4625.1,4625.0,1.0343]
[1757701981811,0.0999,4625.6,4625.0,1.0343]
[1757701982122,0.4197,4625.6,4625.5,0.4146]
[1757701982514,0.4197,4625.6,4625.5,0.6336]
[1757701983017,0.4197,4625.6,4625.5,0.5178]
[1757701983322,0.3198,4625.6,4625.5,0.834]
[1757701984319,0.3198,4625.6,4625.5,0.615]
[1757701984520,0.3198,4625.6,4625.5,0.834]
[1757701984721,0.4197,4625.6,4625.5,0.834]
[1757701985021,0.3198,4625.6,4625.5,0.834]
[1757701985410,0.0999,4625.5,4625.0,0.419]
[1757701985615,0.0999,4624.8,4624.1,31.4478]
[1757701985822,0.3198,4624.3,4624.2,0.9141]
[1757701986016,0.4197,4624.3,4624.2,0.2988]
[1757701986220,0.4197,4624.3,4624.2,0.219]
[1757701986926,0.0999,4624.2,4624.1,31.149]
[1757701987618,0.3198,4624.2,4624.1,31.4478]
[1757701987813,0.3198,4624.2,4623.8,0.2988]
[1757701987814,4.4197,4624.2,4623.8,0.2988]
[1757701988018,0.4197,4624.0,4623.8,0.2988]
[1757701988320,0.3198,4624.0,4623.9,0.22]
[1757701988520,4.3198,4624.0,4623.9,0.22]
[1757701988714,0.3198,4623.7,4623.6,0.2988]
[1757701988918,0.4197,4623.7,4623.6,0.5188]
[1757701989113,0.3197,4623.7,4623.6,0.5188]
[1757701989318,0.2198,4623.7,4623.6,0.5188]
[1757701989619,0.2198,4623.7,4623.6,0.7192]
[1757701990023,0.2198,4623.7,4623.6,0.2988]
[1757701990223,0.2198,4623.7,4623.2,0.22]
[1757701990224,4.2198,4623.7,4623.2,0.22]
[1757701990412,0.2198,4623.7,4623.1,0.5188]
[1757701990620,0.60109546,4623.6,4623.0,0.1]
[1757701990919,0.6010909,4623.5,4623.0,0.1]
[1757701991231,0.21627001,4624.6,4623.0,0.1]
[1757701991427,0.60111333,4624.5,4623.0,0.1]
[1757701991618,0.60111333,4624.4,4623.0,0.1]
[1757701991925,0.88218334,4624.4,4623.0,0.1]
[1757701992124,0.81739333,4624.3,4623.0,0.2158]
[1757701992322,0.60111333,4624.2,4623.1,0.4992]
[1757701992622,0.60111333,4624.1,4623.1,0.4992]
[1757701992827,0.60111333,4624.1,4623.2,0.2988]
[1757701993018,0.60111333,4624.0,4623.2,0.2988]
[1757701993219,0.60111333,4623.9,4623.6,0.2988]
[1757701993421,0.0648,4624.4,4623.6,0.2988]
[1757701993620,0.60123387,4624.3,4623.6,0.2988]
[1757701993825,0.60123387,4624.2,4623.6,0.2988]
[1757701994026,0.60123387,4624.1,4623.7,0.2988]
[1757701994227,0.60123387,4624.0,4623.6,0.2988]
[1757701994432,0.0648,4624.4,4623.6,0.2988]
[1757701994618,0.60136777,4624.3,4623.6,0.2988]
[1757701994821,0.60136777,4624.2,4623.6,0.2988]
[1757701995025,0.60136777,4624.1,4623.6,0.2988]
[1757701995328,0.60136777,4624.0,4623.5,0.1158]
[1757701995628,0.0648,4624.4,4623.6,0.2988]
[1757701995822,0.60148083,4624.3,4623.5,0.1158]
[1757701996023,0.60148083,4624.2,4624.1,0.2988]
[1757701996224,0.0648,4624.4,4624.3,0.2988]
[1757701996421,0.0648,4624.4,4624.3,0.4992]
[1757701996823,0.0648,4624.4,4624.3,0.6951]
[1757701997417,1.16479104,4626.8,4624.6,0.2988]
[1757701997629,0.601407,4626.7,4624.9,0.68776]
[1757701997930,0.0647,4626.8,4625.1,0.2988]
[1757701998121,0.60132979,4626.7,4625.1,0.2988]
[1757701998322,0.2072,4626.8,4626.7,0.2004]
[1757701998524,0.2072,4626.8,4626.7,0.6951]
[1757701998725,0.2072,4626.8,4626.7,0.2988]
[1757701999029,0.2072,4626.8,4626.7,0.4992]
[1757701999224,0.0647,4628.0,4626.8,0.2988]
[1757701999428,0.60102027,4627.9,4626.8,0.2988]
[1757701999631,0.60102027,4627.8,4626.8,0.2988]
[1757701999831,0.60102027,4627.7,4626.8,0.2988]
[1757702000129,0.80822027,4627.6,4627.5,0.4146]
[1757702000329,0.2072,4627.6,4627.5,0.4146]
[1757702000530,0.2072,4627.6,4627.5,0.2988]
[1757702000531,0.2719,4627.6,4627.5,0.2988]
[1757702000725,0.2072,4627.6,4627.5,0.615]
[1757702000918,0.2072,4627.6,4627.5,0.8109]
[1757702001118,0.1036,4627.6,4627.5,0.8109]
[1757702001323,0.1684,4627.8,4627.7,0.2004]
[1757702001525,0.1684,4627.8,4627.7,0.6951]
[1757702001932,0.272,4627.8,4627.7,0.6951]
[1757702002230,0.2719,4627.6,4627.5,0.4146]
[1757702002429,0.2719,4627.6,4627.0,0.4146]
[1757702003228,0.2719,4627.6,4627.0,0.1158]
[1757702003425,0.2072,4627.6,4627.5,0.3162]
[1757702003727,0.1036,4627.6,4627.5,0.5121]
[1757702004028,0.0647,4628.4,4627.5,0.5121]
[1757702004224,0.60010374,4628.3,4627.6,0.2988]
[1757702004426,0.60010374,4628.2,4627.6,0.2988]
[1757702004632,0.0647,4628.4,4627.6,0.2988]
[1757702004934,0.59988835,4628.3,4627.6,0.2988]
[1757702005127,0.59988835,4628.2,4627.6,0.2988]
[1757702005328,0.0647,4628.4,4627.6,0.2988]
[1757702005522,0.59966936,4628.3,4628.0,0.1158]
[1757702005727,0.1036,4628.1,4628.0,0.6105]
[1757702005928,0.2072,4628.1,4628.0,0.6105]
[1757702006233,0.1036,4628.1,4628.0,0.8109]
[1757702006429,0.2072,4628.1,4628.0,0.615]
[1757702006632,0.2072,4628.1,4628.0,0.4146]
[1757702006827,0.87114496,4628.1,4628.0,0.4146]
[1757702007127,4.80664496,4628.1,4627.5,0.4131]
[1757702007426,0.2084,4627.6,4627.5,0.6173]
[1757702007823,0.2084,4627.6,4627.5,0.4131]
[1757702008024,0.80784496,4627.6,4627.5,0.4131]
[1757702008224,0.87234496,4627.6,4627.5,0.4131]
[1757702008831,0.80784496,4627.6,4627.5,0.821]
[1757702009225,0.2084,4627.6,4627.5,0.821]
[1757702009628,0.2729,4627.6,4627.0,0.4131]
[1757702009933,0.2084,4627.1,4627.0,0.6173]
[1757702010132,0.0645,4627.9,4627.0,0.821]
[1757702010333,0.59910024,4627.8,4627.1,0.2973]
[1757702010523,0.2084,4627.6,4627.5,0.5273]
[1757702010721,0.0648,4628.5,4627.6,0.2973]
[1757702010929,0.2732,4628.5,4628.4,0.5015]
[1757702011330,0.87192669,4628.5,4628.4,0.2973]
[1757702011731,0.80742669,4628.5,4628.1,0.2973]
[1757702011932,0.80742669,4628.5,4628.0,0.1194]
[1757702011933,0.2084,4628.1,4628.0,0.6209]
[1757702012238,0.80824737,4628.1,4628.0,0.4167]
[1757702012537,0.59984737,4628.1,4628.0,0.8246]
[1757702012736,0.80824737,4628.1,4628.0,0.8246]
[1757702012932,0.80824737,4628.1,4628.0,0.6209]
[1757702013129,0.80824737,4628.1,4627.5,0.1194]
[1757702013330,0.2084,4627.6,4627.5,0.3236]
[1757702013535,0.80805639,4627.6,4627.5,0.3236]
[1757702013739,0.2084,4627.6,4627.5,0.3236]
[1757702013942,0.2084,4627.6,4627.5,0.6209]
[1757702014243,4.2729,4627.6,4627.0,0.4131]
[1757702014437,0.59966822,4627.5,4627.0,0.4131]
[1757702014639,0.2729,4627.1,4627.0,0.2973]
[1757702014836,0.87254332,4627.1,4627.0,0.2973]
[1757702015036,0.87254332,4627.1,4626.6,0.2973]
[1757702015339,0.2084,4626.6,4626.5,0.4131]
[1757702015639,0.80803276,4626.6,4626.5,0.4131]
[1757702015840,4.87253276,4626.6,4626.0,0.4167]
[1757702016040,0.59963276,4626.5,4626.0,0.4167]
[1757702016235,0.2084,4626.1,4626.0,0.4167]
[1757702016731,0.8081837,4626.1,4626.0,0.4167]
[1757702017138,0.8726837,4626.1,4626.0,0.4167]
[1757702017338,0.8081837,4626.1,4626.0,0.6209]
[1757702018033,0.8081837,4626.1,4625.5,0.4167]
[1757702018034,0.8726837,4626.1,4625.5,0.4167]
[1757702018233,0.1042,4625.6,4625.5,0.8246]
[1757702020439,0.2084,4625.6,4625.5,0.8246]
[1757702020841,0.2084,4625.6,4625.5,0.6209]
[1757702021038,0.2084,4625.6,4625.5,0.4167]
[1757702021345,0.2084,4625.6,4625.1,0.2973]
[1757702021643,0.2084,4625.1,4625.0,0.3236]
[1757702021834,0.2084,4625.1,4625.0,0.5273]
[1757702022143,0.1042,4625.2,4625.1,0.7052]
[1757702022331,20.4645,4626.3,4625.1,0.4079]
[1757702022537,0.2084,4626.1,4626.0,0.3236]
[1757702022732,0.60115351,4626.1,4626.0,0.8246]
[1757702023244,0.70535351,4626.1,4626.0,0.8246]
[1757702024540,0.60115351,4626.1,4626.0,0.8246]
[1757702025242,0.80955351,4626.1,4626.0,0.8246]
[1757702025448,0.87515351,4626.1,4625.6,0.2851]
[1757702025638,0.66675351,4626.0,4625.6,0.2851]
[1757702025939,0.70615351,4625.9,4625.8,0.6955]
[1757702026847,0.105,4625.9,4625.8,0.6955]
[1757702027038,0.21,4625.9,4625.8,0.4885]
[1757702027236,0.2756,4625.9,4625.8,0.2851]
[1757702027440,0.2756,4625.9,4625.5,0.1194]
[1757702027644,0.2756,4625.9,4625.8,0.2034]
[1757702027861,0.21,4625.9,4625.8,0.6955]
[1757702028449,0.21,4625.9,4625.8,0.4885]
[1757702028649,0.21,4625.9,4625.8,0.2851]
[1757702028837,0.81276028,4625.9,4625.8,0.2851]
[1757702030343,0.81276028,4625.9,4625.5,0.4045]
[1757702030553,0.21,4625.6,4625.0,0.1194]
[1757702030847,0.21,4625.6,4625.5,0.6041]
[1757702032242,0.21,4625.6,4625.5,0.8111]
[1757702032443,0.70728015,4625.6,4625.5,0.8111]
[1757702032644,0.81228015,4625.6,4625.5,0.8111]
[1757702033042,0.22,4626.2,4625.5,0.526]
[1757702033244,0.81204573,4626.1,4626.0,0.319]
[1757702033447,0.87764573,4626.1,4625.5,0.1156]
[1757702033644,0.21,4625.6,4625.5,0.6041]
[1757702033845,0.21,4625.6,4625.5,0.8111]
[1757702034051,0.43,4626.1,4626.0,0.319]
[1757702034252,0.22,4626.3,4626.0,0.8111]
[1757702034551,0.60199916,4626.2,4626.0,0.526]
[1757702034745,0.60199916,4626.1,4626.0,0.526]
[1757702035049,0.70699916,4626.1,4626.0,0.8111]
[1757702035248,0.81199916,4626.1,4626.0,0.8111]
[1757702035851,0.21,4626.1,4626.0,0.8111]
[1757702036149,0.22,4626.8,4626.5,0.1156]
[1757702036354,0.21,4626.6,4626.5,0.6041]
[1757702036554,0.8122032,4626.6,4626.5,0.6041]
[1757702036757,0.6022032,4626.6,4626.5,0.8111]
[1757702036956,0.6022032,4626.6,4626.5,0.8388]
[1757702037250,1.16479104,4627.5,4627.0,0.1255]
[1757702037448,0.70723716,4627.4,4627.3,0.4053]
[1757702037644,0.60243716,4627.4,4627.3,0.7181]
[1757702038048,0.81203716,4627.4,4627.3,0.3128]
[1757702038656,0.81203716,4627.4,4627.3,0.7181]
[1757702039049,0.87793716,4627.4,4627.0,0.1255]
[1757702039351,0.2096,4627.1,4627.0,0.8436]
[1757702039555,1.16479104,4628.4,4627.5,0.1255]
[1757702039749,0.60294049,4628.3,4627.6,0.3128]
[1757702040056,0.2096,4627.7,4627.6,0.7181]
[1757702040247,0.2096,4627.7,4627.6,0.3128]
[1757702040557,0.81254049,4627.7,4627.6,0.3128]
[1757702040753,0.87844049,4627.7,4627.6,0.3128]
[1757702041246,0.81254049,4627.7,4627.6,0.3128]
[1757702041647,0.2096,4627.2,4627.1,0.5207]
[1757702041857,0.2096,4627.2,4627.1,0.7181]
[1757702042055,0.81254049,4627.2,4627.1,0.7181]
[1757702042355,0.81254049,4627.2,4627.1,0.5207]
[1757702042752,0.60294049,4627.2,4627.1,0.7181]
[1757702046060,0.70774049,4627.2,4627.1,0.7181]
[1757702046265,0.1048,4627.2,4627.1,0.7181]
[1757702046453,0.70753625,4627.2,4627.1,0.7181]
[1757702046856,0.81233625,4627.2,4627.1,0.5207]
[1757702047056,0.2096,4626.1,4626.0,0.6363]
[1757702047256,0.2755,4626.1,4626.0,0.3128]
[1757702047557,20.4,4626.9,4626.0,0.5308]
[1757702047759,1.03433625,4626.8,4626.7,0.3128]
[1757702047955,1.10023625,4626.8,4626.7,0.3128]
[1757702048155,1.03433625,4626.8,4626.7,0.7181]
[1757702050563,0.81233625,4626.8,4626.7,0.7181]
[1757702052068,0.60273625,4626.8,4626.7,0.7181]
[1757702052367,0.81233625,4626.8,4626.7,0.5207]
[1757702052666,0.70753625,4626.8,4626.7,0.7181]
[1757702053262,0.60273625,4626.8,4626.7,0.7181]
[1757702053466,0.81233625,4626.8,4626.7,0.7181]
[1757702054369,0.70753625,4626.8,4626.7,0.7181]
[1757702054662,0.60273625,4626.8,4626.7,0.7181]
[1757702056760,0.3268,4627.3,4627.2,0.2079]
[1757702056959,0.4316,4627.3,4627.2,0.5207]
[1757702057161,1.03617724,4627.3,4627.2,0.5207]
[1757702058461,0.0659,4627.2,4627.0,0.4383]
[1757702058666,0.81417724,4627.1,4627.0,0.6462]
[1757702061270,0.81417724,4627.1,4627.0,0.8436]
[1757702062067,0.60457724,4627.1,4627.0,0.8436]
[1757702062656,0.0648,4627.5,4627.1,0.3128]
[1757702062868,0.0648,4627.5,4627.4,0.7181]
[1757702063263,0.2943,4628.0,4627.4,0.7181]
[1757702063461,0.4867,4628.0,4627.9,0.4053]
[1757702063661,0.4867,4628.0,4627.9,0.7181]
[1757702064556,0.1924,4628.0,4627.9,0.7181]
[1757702064761,0.3894,4628.3,4628.2,0.4053]
[1757702064963,0.6837,4628.3,4628.2,0.7181]
[1757702065366,0.8886,4628.3,4628.2,0.7181]
[1757702065957,0.2943,4628.7,4628.2,0.4053]
[1757702066165,0.4867,4628.7,4628.6,0.4053]
[1757702066371,0.4867,4628.7,4628.6,0.7181]
[1757702066568,0.1924,4628.7,4628.6,0.7181]
[1757702066971,1.16229391,4628.7,4628.6,0.7181]
[1757702067268,1.16229391,4628.8,4628.7,0.6927]
[1757702067466,1.33229391,4628.9,4628.7,0.6927]
[1757702067771,0.6632,4628.9,4628.8,0.6927]
[1757702068563,0.3667,4628.9,4628.8,0.6927]
[1757702068970,0.8672,4628.9,4628.8,0.6927]
[1757702074566,0.3667,4628.9,4628.8,0.6927]
[1757702074772,0.77038312,4628.9,4628.8,0.6927]
[1757702075165,0.18148312,4628.9,4628.8,4.90874]
[1757702075572,0.0648,4629.0,4628.8,4.61564]
[1757702075777,0.0648,4629.0,4628.9,0.21603]
[1757702075976,0.0648,4629.0,4628.8,4.0]
[1757702076276,0.2965,4629.4,4628.5,0.3465]
[1757702076475,0.2965,4629.4,4628.6,0.21603]
[1757702076870,0.1198,4629.5,4628.6,0.21603]
[1757702077168,0.1198,4629.5,4628.7,0.221]
[1757702077368,0.3165,4629.5,4628.7,0.21603]
[1757702077671,0.3165,4629.5,4628.5,0.1255]
[1757702077672,0.4932,4629.4,4628.0,31.2505]
[1757702077871,0.4932,4629.3,4628.6,0.221]
[1757702078070,0.2965,4629.3,4628.6,0.221]
[1757702078572,0.3165,4629.5,4628.6,0.221]
[1757702078770,0.2965,4629.4,4628.0,31.2505]
[1757702079075,0.1198,4629.0,4628.1,0.43704]
[1757702079280,0.2965,4628.9,4628.1,0.21604]
[1757702079575,0.2965,4628.9,4628.2,0.43705]
[1757702079770,0.2965,4628.9,4628.1,0.21606]
[1757702079972,0.0648,4629.2,4628.2,0.221]
[1757702080371,0.0648,4629.2,4628.3,0.21604]
[1757702080771,0.0648,4629.2,4628.4,0.21604]
[1757702080970,0.0648,4629.2,4628.3,0.21604]
[1757702081175,0.0648,4629.2,4628.5,0.221]
[1757702081375,0.0648,4629.2,4628.6,0.221]
[1757702081572,0.3165,4629.0,4628.7,0.221]
[1757702081874,0.2965,4628.9,4628.0,31.2505]
[1757702082076,0.2965,4628.9,4628.1,0.221]
[1757702082677,0.1967,4628.9,4628.0,31.2505]
[1757702082879,0.4932,4628.8,4628.0,31.2505]
[1757702083079,0.4932,4628.7,4628.1,0.221]
[1757702083273,0.2965,4628.7,4628.1,0.221]
[1757702083668,0.1967,4628.7,4628.2,0.221]
[1757702083873,0.2965,4628.4,4628.3,0.221]
[1757702084373,0.2965,4628.4,4628.3,4.221]
[1757702085178,0.2965,4628.9,4628.3,4.221]
[1757702085376,0.2965,4628.9,4628.3,0.221]
[1757702085576,0.2965,4628.9,4628.0,31.125]
[1757702085880,0.2965,4628.9,4628.1,0.221]
[1757702086981,0.4932,4628.9,4628.1,0.221]
[1757702087377,0.3089,4628.5,4628.2,0.221]
[1757702087591,0.2864,4628.4,4628.2,0.221]
[1757702087780,0.2864,4628.4,4628.3,0.221]
[1757702087982,0.479,4628.4,4628.3,0.221]
[1757702088281,0.2864,4628.4,4628.3,0.221]
[1757702089076,0.1163,4628.5,4628.3,0.221]
[1757702089285,0.0648,4628.6,4628.3,0.221]
[1757702089677,0.2864,4628.4,4628.3,0.221]
[1757702089871,0.2864,4628.4,4628.0,31.125]
[1757702090185,0.3089,4628.5,4628.0,31.125]
[1757702090390,0.2864,4628.4,4628.1,0.221]
[1757702090683,0.2864,4628.3,4628.1,0.221]
[1757702090881,0.1163,4628.5,4628.1,0.221]
[1757702091285,0.3089,4628.5,4628.1,0.221]
[1757702091476,0.2864,4628.4,4628.2,0.221]
[1757702091978,0.2864,4628.5,4628.2,0.221]
[1757702092177,0.1163,4628.5,4628.0,31.125]
[1757702092479,0.1163,4628.5,4628.1,0.221]
[1757702092682,0.1163,4628.5,4628.2,0.221]
[1757702092885,0.3859,4628.4,4628.3,0.221]
[1757702093079,0.2864,4628.3,4628.0,31.125]
[1757702093390,0.6723,4628.1,4628.0,31.125]
[1757702093875,0.6723,4628.1,4628.0,31.346]
[1757702094576,0.6723,4628.1,4628.0,31.125]
[1757702094780,0.6723,4628.1,4628.0,31.346]
[1757702096281,0.479,4628.1,4628.0,31.346]
[1757702096484,0.1163,4628.5,4628.0,31.346]
[1757702096784,0.2864,4628.4,4628.0,31.346]
[1757702097080,0.3074,4628.4,4628.0,31.346]
[1757702097285,0.4237,4628.5,4628.0,31.346]
[1757702097586,0.5128,4628.4,4628.1,0.221]
[1757702099082,0.2054,4628.4,4628.1,0.221]
[1757702099288,0.3074,4628.4,4628.1,0.221]
[1757702099492,0.1163,4628.5,4628.0,31.125]
[1757702099785,0.2054,4628.2,4628.0,31.125]
[1757702099985,0.5128,4628.2,4628.1,0.221]
[1757702100489,0.5007,4628.1,4628.0,31.125]
[1757702100692,0.5007,4628.1,4628.0,31.346]
[1757702100891,0.3074,4628.1,4628.0,31.346]
[1757702102687,0.1163,4628.5,4628.0,31.346]
[1757702102881,0.3074,4628.4,4628.0,31.346]
[1757702103586,0.4237,4628.5,4628.0,31.7347]
[1757702103894,0.3074,4628.4,4628.0,31.346]
[1757702104096,0.1163,4628.5,4628.0,31.346]
[1757702104590,0.4237,4628.5,4628.1,0.221]
[1757702105195,0.3074,4628.4,4628.1,0.221]
[1757702105390,0.3217,4628.5,4628.1,0.221]
[1757702105584,0.2054,4628.4,4628.1,0.221]
[1757702105784,0.1163,4628.5,4628.2,0.221]
[1757702105991,0.5128,4628.3,4628.2,0.221]
[1757702106195,0.2054,4628.3,4628.2,0.221]
[1757702106586,0.3217,4628.5,4628.2,0.221]
[1757702106789,0.3074,4628.4,4628.2,0.221]
[1757702106994,0.3074,4628.4,4628.3,0.221]
[1757702107788,0.7061,4628.4,4628.3,0.221]
[1757702107988,0.3074,4628.3,4628.0,31.125]
[1757702108296,0.7061,4628.2,4628.1,0.221]
[1757702108490,0.3987,4628.2,4628.0,31.125]
[1757702108789,0.3074,4628.1,4628.0,31.125]
[1757702109189,0.1811,4628.5,4628.0,31.346]
[1757702109396,0.3074,4628.3,4628.0,31.346]
[1757702109791,0.3074,4628.4,4628.0,31.125]
[1757702109991,0.3074,4628.4,4628.1,0.221]
[1757702110592,0.1811,4628.5,4628.2,0.221]
[1757702110790,0.3074,4628.4,4628.2,0.221]
[1757702111490,0.1811,4628.5,4628.2,0.221]
[1757702111794,0.3074,4628.4,4628.2,0.221]
[1757702112294,0.1198,4629.0,4628.2,4.221]
[1757702112496,0.60769617,4628.9,4628.5,0.38866]
[1757702112795,0.3074,4629.2,4628.6,0.221]
[1757702113588,0.4272,4629.5,4628.6,0.221]
[1757702113794,0.6326,4629.5,4628.6,0.221]
[1757702114293,0.3074,4629.4,4628.6,0.60965]
[1757702114505,0.3074,4629.4,4628.6,0.82568]
[1757702114793,0.5128,4629.4,4628.6,0.60965]
[1757702115391,0.2054,4628.8,4628.7,0.221]
[1757702115596,0.7061,4628.8,4628.7,0.221]
[1757702117192,0.3987,4628.8,4628.7,0.221]
[1757702117393,0.6851,4628.8,4628.7,0.221]
[1757702118299,0.4918,4628.8,4628.7,0.221]
[1757702118595,0.2864,4628.8,4628.7,0.221]
[1757702118798,0.4865,4628.8,4628.7,0.221]
[1757702118985,0.6934,4628.8,4628.7,0.221]
[1757702119190,0.407,4628.8,4628.0,31.51371]
[1757702119390,0.123,4629.0,4628.1,0.221]
[1757702119391,0.2864,4628.4,4628.1,0.221]
[1757702119792,0.2864,4628.4,4628.0,31.125]
[1757702119998,0.2864,4628.4,4628.1,0.221]
[1757702120194,0.2864,4628.4,4628.0,31.125]
[1757702120496,0.2864,4628.3,4628.2,0.221]
[1757702120998,0.2864,4628.3,4628.1,0.3887]
[1757702121192,0.2864,4628.3,4628.2,0.221]
[1757702123210,0.4865,4628.4,4628.2,0.22]
[1757702123500,0.6934,4628.4,4628.3,0.22]
[1757702124502,0.2864,4628.4,4628.3,0.22]
[1757702124999,0.2001,4628.6,4628.5,0.6991]
[1757702125196,0.2001,4628.6,4628.5,0.9191]
[1757702125597,0.407,4628.6,4628.5,0.9191]
[1757702127003,0.7128,4628.6,4628.5,0.9191]
[1757702127901,0.5059,4628.6,4628.5,0.9191]
[1757702128110,0.6992,4628.6,4628.5,0.9191]
[1757702128398,0.6992,4628.6,4628.5,0.6199]
[1757702128796,0.6992,4628.6,4628.5,0.3999]
[1757702128996,0.6992,4628.6,4628.5,0.6199]
[1757702130398,0.6992,4628.6,4628.5,0.3999]
[1757702130598,0.6992,4628.6,4628.5,0.9272]
[1757702131405,0.6992,4628.6,4628.5,0.3999]
[1757702131606,0.6992,4628.6,4628.5,0.6199]
[1757702131807,0.6992,4628.6,4628.0,31.2859]
[1757702131808,0.3916,4628.1,4628.0,0.1]
[1757702131996,0.6974,4628.1,4628.0,0.32]
[1757702132902,0.3916,4627.1,4627.0,0.1]
[1757702133208,0.6974,4627.1,4627.0,0.32]
[1757702133408,4.6974,4627.1,4627.0,0.1]
[1757702133607,0.6974,4626.6,4626.5,31.111]
[1757702134009,0.6974,4626.6,4626.5,31.331]
[1757702136005,0.6974,4626.6,4626.5,31.111]
[1757702136200,0.6974,4626.1,4626.0,0.2892]
[1757702136403,0.6974,4626.1,4626.0,0.5092]
[1757702137603,0.6974,4626.1,4626.0,0.1]
[1757702137802,0.6974,4626.1,4626.0,0.32]
[1757702138208,0.6974,4626.1,4626.0,0.5092]
[1757702138606,0.6974,4626.1,4626.0,1.0189]
[1757702139808,0.1215,4626.5,4626.0,1.0189]
[1757702139809,0.2631,4626.8,4626.7,0.3916]
[1757702140008,0.7622,4626.8,4626.7,0.9189]